bitfinex/quotes_SOLUSD_20220302
["timestamp","ask_amount","ask_price","bid_price","bid_amount"]
[1646256738724,6.25,100.15,100.09,4.993]
[1646256739528,28.9977,100.15,100.09,4.993]
[1646256740229,43.9892,100.15,100.09,4.993]
[1646256740429,58.08920139,100.14,100.09,4.993]
[1646256740830,58.08920139,100.14,100.09,5.243]
[1646256741033,58.08920139,100.14,100.09,4.993]
[1646256741532,78.07660139,100.14,100.07,24.3908]
[1646256741735,6.0,100.13,100.05,2.54904003]
[1646256741933,30.6881,100.13,100.03,31.32280207]
[1646256742134,30.6881,100.13,100.04,24.3986]
[1646256742332,30.6881,100.13,100.03,16.94280207]
[1646256742333,4.995,100.12,100.03,5.0]
[1646256742535,6.0,100.11,100.02,22.36563388]
[1646256742735,74.98860865,100.1,100.02,46.76423388]
[1646256742935,90.23780865,100.1,100.02,61.76093388]
[1646256743339,196.66608865,100.1,100.01,11.94280207]
[1646256743536,6.0,100.09,100.01,5.0]
[1646256743738,6.0,100.09,100.0,23.6729]
[1646256743739,4.997,100.08,100.0,23.6729]
[1646256743938,29.6714,100.08,100.0,23.6729]
[1646256744436,29.6714,100.08,100.0,38.6726]
[1646256744637,29.6714,100.08,100.0,38.9226]
[1646256746738,24.6744,100.08,100.0,38.9226]
[1646256747560,24.6744,100.08,100.0,53.3026]
[1646256748862,24.6744,100.08,100.0,153.0326]
[1646256749668,24.6744,100.08,100.0,53.3026]
[1646256750969,24.6744,100.08,100.0,58.3026]
[1646256751466,24.6744,100.08,100.0,53.3026]
[1646256751670,24.6744,100.08,100.0,58.3026]
[1646256753972,24.6744,100.08,100.0,43.9226]
[1646256754173,24.6744,100.08,100.0,23.6729]
[1646256754373,10.998,100.07,100.0,23.6729]
[1646256754573,57.75351839,100.06,100.0,23.6729]
[1646256754777,0.25,100.06,100.0,23.6729]
[1646256755473,0.25,100.06,99.989,5.0]
[1646256755674,0.25,100.06,99.99,0.25]
[1646256755876,5.248,100.07,99.99,15.2523]
[1646256756076,29.4224,100.08,100.0,59.45]
[1646256756275,24.4244,100.08,100.0,37.6864]
[1646256756475,24.4244,100.08,100.01,2.54904003]
[1646256756774,24.4244,100.08,100.01,2.79904003]
[1646256756974,24.4244,100.08,100.01,17.79764003]
[1646256757172,24.4244,100.08,100.02,2.54904003]
[1646256757376,24.4244,100.08,100.02,26.37154003]
[1646256757575,24.4244,100.08,100.02,26.62154003]
[1646256757775,24.4244,100.08,100.03,2.54904003]
[1646256759178,24.6744,100.08,100.03,2.54904003]
[1646256760780,29.6714,100.08,100.0,47.8291]
[1646256761187,29.4214,100.08,100.0,47.8291]
[1646256761380,24.4244,100.08,100.01,2.54904003]
[1646256761884,24.4244,100.08,100.01,2.79904003]
[1646256764087,24.6744,100.08,100.01,2.79904003]
[1646256765191,24.6744,100.08,100.02,2.54904003]
[1646256765388,24.6744,100.08,100.02,2.79904003]
[1646256765790,24.6744,100.08,100.02,0.25]
[1646256766204,29.6714,100.08,100.02,0.25]
[1646256766405,29.6714,100.08,100.0,65.62884003]
[1646256774614,29.6714,100.08,100.0,65.37884003]
[1646256776116,29.6714,100.08,100.0,65.62884003]
[1646256777219,105.73,100.07,99.981,2.54904003]
[1646256777418,155.86112646,100.05,99.982,5.0]
[1646256777618,25.379,100.04,99.982,5.0]
[1646256777818,0.25,100.04,99.94,14.38]
[1646256778019,23.3634,100.07,99.953,185.0]
[1646256778217,23.3634,100.07,99.952,185.0]
[1646256778218,23.3634,100.07,99.99,15.0023]
[1646256778418,23.3634,100.07,100.0,23.6555]
[1646256778619,23.3634,100.07,100.01,4.998]
[1646256778923,23.3634,100.07,100.01,5.248]
[1646256779319,23.3634,100.07,100.02,2.54904003]
[1646256779519,23.3634,100.07,100.02,17.79664003]
[1646256779926,23.3634,100.07,100.03,2.54904003]
[1646256780120,23.3634,100.07,100.03,2.79904003]
[1646256781022,23.3634,100.07,100.04,2.54904003]
[1646256781222,23.3634,100.07,100.04,2.79904003]
[1646256782524,23.3634,100.07,100.05,2.54904003]
[1646256783326,23.3634,100.07,100.04,0.25]
[1646256783525,23.3634,100.07,100.03,32.17504003]
[1646256783727,23.3634,100.07,100.03,17.79504003]
[1646256785029,23.3634,100.07,100.03,191.35504003]
[1646256785228,4.07335997,100.07,100.03,213.29051441]
[1646256785431,4.07335997,100.07,100.03,227.0551603]
[1646256785828,4.07335997,100.07,100.05,5.0]
[1646256786028,5.997e-05,100.07,100.06,14.9907]
[1646256786228,5.997e-05,100.07,100.06,41.88994003]
[1646256788130,59.38070972,100.15,100.06,61.26994003]
[1646256788430,59.38070972,100.15,100.07,2.54904003]
[1646256788634,59.63070972,100.15,100.07,17.78924003]
[1646256789033,59.63070972,100.15,100.07,15.2402]
[1646256790632,59.63070972,100.15,100.07,20.2402]
[1646256790834,4.996,100.15,100.07,196.34924003]
[1646256791033,4.996,100.15,100.07,191.34924003]
[1646256791235,4.994,100.16,100.07,191.34924003]
[1646256791441,4.994,100.2,100.09,159.18]
[1646256791638,4.994,100.2,100.1,29.3655]
[1646256791833,49.20771013,100.19,100.1,29.6155]
[1646256792034,4.992,100.18,100.1,29.6155]
[1646256792232,4.992,100.18,100.1,53.416]
[1646256792433,4.992,100.18,100.1,55.96504003]
[1646256793041,5.242,100.18,100.1,55.96504003]
[1646256793234,43.07991511,100.17,100.1,55.96504003]
[1646256793435,43.32991511,100.17,100.1,55.96504003]
[1646256793833,0.25,100.17,100.1,155.69504003]
[1646256794034,0.25,100.17,100.11,14.9842]
[1646256794337,0.25,100.17,100.11,15.2342]
[1646256794533,0.25,100.19,100.11,15.2342]
[1646256794734,4.992,100.18,100.11,15.2342]
[1646256794934,51.06712471,100.18,100.11,15.2342]
[1646256795135,46.07512471,100.18,100.11,15.2342]
[1646256796335,46.07512471,100.18,100.11,0.25]
[1646256796535,42.9096818,100.16,100.1,24.0505]
[1646256796838,43.1596818,100.16,100.1,24.0505]
[1646256799035,43.1596818,100.16,100.09,23.5651]
[1646256799343,48.1526818,100.16,100.09,23.5651]
[1646256799637,44.03385037,100.14,100.09,23.5651]
[1646256799858,44.28385037,100.14,100.07,23.6973]
[1646256801942,44.12935697,100.12,100.07,23.6973]
[1646256802140,44.37935697,100.12,100.07,23.6973]
[1646256811958,0.25,100.12,100.07,23.6973]
[1646256812158,23.8786,100.14,100.07,23.6973]
[1646256812960,58.76013477,100.13,100.07,23.6973]
[1646256813262,59.01013477,100.13,100.07,23.6973]
[1646256813861,64.00513477,100.13,100.07,23.6973]
[1646256814463,64.00513477,100.13,100.07,23.9473]
[1646256814893,59.01013477,100.13,100.07,23.9473]
[1646256816166,58.76013477,100.13,100.07,26.49634003]
[1646256816963,63.75513477,100.13,100.07,26.49634003]
[1646256818063,64.00513477,100.13,100.07,26.49634003]
[1646256820869,64.00513477,100.13,100.07,26.24634003]
[1646256823070,64.00513477,100.13,100.07,23.6973]
[1646256824973,53.02577263,100.11,100.07,23.6973]
[1646256825270,6.0,100.1,100.07,23.6973]
[1646256826072,0.25,100.11,100.07,23.6973]
[1646256826276,5.245,100.13,100.07,23.6973]
[1646256827072,48.1191739,100.12,100.07,23.6973]
[1646256827273,48.3691739,100.12,100.07,23.6973]
[1646256829173,48.3691739,100.12,100.07,26.24634003]
[1646256831307,48.1191739,100.12,100.07,26.24634003]
[1646256831502,48.1191739,100.12,100.07,26.49634003]
[1646256831703,48.1191739,100.12,100.07,26.24634003]
[1646256832103,48.1191739,100.12,100.07,26.49634003]
[1646256832705,48.3691739,100.12,100.07,26.24634003]
[1646256837512,0.25,100.12,100.07,26.24634003]
[1646256837714,5.245,100.13,100.07,26.24634003]
[1646256838111,0.25,100.13,100.07,26.24634003]
[1646256838311,23.8786,100.14,100.07,26.24634003]
[1646256839211,23.8786,100.14,100.07,26.49634003]
[1646256839411,4.995,100.15,100.07,126.22634003]
[1646256839610,4.994,100.16,100.07,126.22634003]
[1646256839812,6.0,100.15,100.08,14.38]
[1646256840013,6.0,100.15,100.08,14.63]
[1646256840219,6.0,100.15,100.08,91.61774003]
[1646256840412,6.0,100.15,100.09,23.4771]
[1646256840614,6.0,100.16,100.09,23.7271]
[1646256840820,6.0,100.16,100.09,40.65614003]
[1646256841315,6.0,100.16,100.1,4.993]
[1646256841516,6.0,100.16,100.1,5.243]
[1646256841713,52.05326301,100.16,100.1,5.243]
[1646256841913,52.30326301,100.16,100.1,5.243]
[1646256842115,52.30326301,100.16,100.1,0.25]
[1646256842317,0.25,100.16,100.1,0.25]
[1646256842518,23.7295,100.17,100.1,0.25]
[1646256842717,4.993,100.16,100.09,41.26304003]
[1646256842915,5.243,100.16,100.09,41.26304003]
[1646256843117,5.243,100.16,100.09,55.64304003]
[1646256843315,62.05310747,100.16,100.09,55.64304003]
[1646256844427,62.05310747,100.16,100.09,55.39304003]
[1646256844624,82.96534477,100.16,100.09,23.4771]
[1646256844824,77.97234477,100.16,100.09,23.4771]
[1646256846125,6.0,100.15,100.09,23.4771]
[1646256846323,58.34112392,100.14,100.09,23.4771]
[1646256846524,58.59112392,100.14,100.09,23.4771]
[1646256847125,60.40096376,100.14,100.06,4.994]
[1646256847327,104.725,100.13,100.04,4.995]
[1646256847524,160.53510161,100.12,100.04,4.995]
[1646256847729,204.23405726,100.12,99.99,62.4661]
[1646256847928,24.38431395,100.11,100.0,5.0]
[1646256848126,63.66888178,100.1,100.0,19.38]
[1646256848326,83.91598178,100.1,100.0,34.3806]
[1646256848745,83.91598178,100.1,100.0,34.6306]
[1646256849546,85.72582162,100.1,100.0,34.3806]
[1646256850349,85.72582162,100.1,100.0,36.92964003]
[1646256850547,80.72882162,100.1,100.0,36.92964003]
[1646256850845,80.72882162,100.1,100.0,52.23544003]
[1646256851046,80.72882162,100.1,100.01,4.997]
[1646256851245,80.72882162,100.1,100.01,5.247]
[1646256851444,80.72882162,100.1,100.01,0.25]
[1646256852047,78.91898178,100.1,100.01,2.79904003]
[1646256852949,78.91898178,100.1,100.01,7.79904003]
[1646256853848,78.91898178,100.1,100.01,32.61224003]
[1646256854048,4.997,100.09,100.02,4.997]
[1646256854249,5.247,100.09,100.02,4.997]
[1646256855647,44.09428292,100.08,100.02,4.997]
[1646256855848,4.997,100.09,100.02,4.997]
[1646256856049,21.0001,100.1,100.02,7.79604003]
[1646256856050,6.0,100.1,100.02,7.79604003]
[1646256856354,4.997,100.12,100.03,178.87914912]
[1646256856555,4.997,100.12,100.03,218.28614912]
[1646256856755,4.997,100.12,100.04,2.54904003]
[1646256857055,48.61492756,100.12,100.04,17.17904003]
[1646256857464,43.61792756,100.12,100.05,2.54904003]
[1646256857664,43.61792756,100.12,100.05,2.79904003]
[1646256858067,43.86792756,100.12,100.05,17.79214003]
[1646256858563,43.61792756,100.12,100.05,17.79214003]
[1646256858963,43.61792756,100.12,100.05,15.2431]
[1646256859364,43.61792756,100.12,100.05,0.25]
[1646256859564,43.61792756,100.12,100.03,104.00998159]
[1646256859965,43.86792756,100.12,100.03,104.00998159]
[1646256860669,43.86792756,100.12,100.03,103.75998159]
[1646256860867,4.996,100.11,100.03,103.75998159]
[1646256861068,56.80276276,100.1,100.03,103.75998159]
[1646256862068,56.80276276,100.1,100.03,104.00998159]
[1646256864172,56.80276276,100.1,100.03,119.24748159]
[1646256864872,4.996,100.1,100.03,119.24748159]
[1646256865274,4.996,100.1,100.03,118.99748159]
[1646256865472,0.25,100.11,100.03,118.99748159]
[1646256865673,44.3032,100.13,100.03,118.99748159]
[1646256865874,59.68679144,100.12,100.03,218.72748159]
[1646256866073,59.93679144,100.12,100.03,213.72748159]
[1646256866272,59.93679144,100.12,100.03,218.72748159]
[1646256866475,59.93679144,100.12,100.04,159.18]
[1646256866674,59.93679144,100.12,100.05,14.38]
[1646256866873,59.93679144,100.12,100.05,32.17154003]
[1646256867074,59.93679144,100.12,100.05,37.17154003]
[1646256867473,4.996,100.13,100.05,136.90154003]
[1646256867672,29.2925,100.14,100.06,2.54904003]
[1646256867872,24.2975,100.14,100.06,22.17904003]
[1646256868078,4.995,100.15,100.07,14.9902]
[1646256868276,4.995,100.15,100.07,32.16924003]
[1646256868474,4.995,100.15,100.08,2.54904003]
[1646256868678,4.995,100.15,100.08,17.17904003]
[1646256869177,4.995,100.15,100.09,2.54904003]
[1646256869374,56.08972084,100.16,100.09,17.78534003]
[1646256869776,56.08972084,100.16,100.09,32.16534003]
[1646256870179,56.33972084,100.16,100.09,32.16534003]
[1646256870577,56.33972084,100.16,100.09,37.16534003]
[1646256870777,56.08972084,100.16,100.09,37.16534003]
[1646256872381,29.2156,100.18,100.09,37.16534003]
[1646256872581,29.2156,100.18,100.09,159.70494003]
[1646256872780,4.993,100.19,100.1,161.72904003]
[1646256872983,4.992,100.2,100.12,14.9824]
[1646256873181,6.0,100.19,100.12,52.422]
[1646256873380,45.40614876,100.18,100.12,52.422]
[1646256874180,45.65614876,100.18,100.12,52.422]
[1646256875199,50.64814876,100.18,100.11,2.54904003]
[1646256875400,50.64814876,100.18,100.09,39.1253]
[1646256875599,50.64814876,100.18,100.09,39.3753]
[1646256875600,59.46795199,100.16,100.09,39.3753]
[1646256875800,59.71795199,100.16,100.09,39.3753]
[1646256878003,59.71795199,100.16,100.09,24.7453]
[1646256878401,64.71095199,100.16,100.09,24.7453]
[1646256879705,79.70165199,100.16,100.09,24.7453]
[1646256879903,6.0,100.15,100.09,24.7453]
[1646256880103,59.66161938,100.14,100.09,24.7453]
[1646256880302,59.91161938,100.14,100.09,24.7453]
[1646256883007,59.91161938,100.14,100.08,23.7862]
[1646256883208,59.91161938,100.14,100.08,24.0362]
[1646256884008,0.25,100.14,100.08,24.0362]
[1646256884208,0.25,100.15,100.08,41.57394003]
[1646256884410,6.0,100.16,100.08,41.57394003]
[1646256884611,0.25,100.16,100.08,53.4049]
[1646256884809,0.25,100.16,100.08,55.95394003]
[1646256885209,45.40281333,100.16,100.08,55.95394003]
[1646256887712,4.994,100.15,100.08,55.95394003]
[1646256887915,45.90642003,100.14,100.08,55.95394003]
[1646256888113,46.15642003,100.14,100.08,55.95394003]
[1646256888312,46.15642003,100.14,100.08,55.70394003]
[1646256889616,46.15642003,100.14,100.08,55.95394003]
[1646256892416,46.15642003,100.14,100.08,53.4049]
[1646256896722,4.994,100.15,100.08,53.4049]
[1646256896920,24.5011,100.16,100.08,60.94794003]
[1646256897322,29.4951,100.16,100.08,60.94794003]
[1646256897723,48.82986108,100.15,100.08,60.94794003]
[1646256898123,49.07986108,100.15,100.08,60.94794003]
[1646256898822,49.07986108,100.15,100.08,58.3989]
[1646256899925,49.07986108,100.15,100.08,58.1489]
[1646256900123,49.07986108,100.15,100.08,53.1549]
[1646256901150,49.07986108,100.15,100.08,53.4049]
[1646256904534,4.994,100.14,100.08,53.4049]
[1646256904736,5.244,100.14,100.08,53.4049]
[1646256906534,46.3136054,100.13,100.08,53.4049]
[1646256908235,0.25,100.14,100.08,53.4049]
[1646256908435,0.25,100.15,100.08,53.4049]
[1646256908650,44.7356,100.16,100.08,53.4049]
[1646256909053,46.31430203,100.16,100.07,28.8248]
[1646256909262,66.62531746,100.15,100.07,23.8308]
[1646256909456,4.994,100.14,100.07,23.8308]
[1646256909656,5.244,100.14,100.07,24.0808]
[1646256911452,5.244,100.14,100.07,23.8308]
[1646256912553,5.244,100.14,100.07,24.0808]
[1646256912956,48.53252443,100.13,100.07,24.0808]
[1646256913259,48.78252443,100.13,100.07,24.0808]
[1646256914556,0.25,100.13,100.07,24.0808]
[1646256914757,27.9695,100.14,100.08,2.54904003]
[1646256914958,27.9695,100.14,100.07,24.0808]
[1646256915558,50.26306963,100.13,100.07,24.0808]
[1646256915757,50.51306963,100.13,100.07,24.0808]
[1646256917459,50.51306963,100.13,100.07,38.4608]
[1646256917964,50.51306963,100.13,100.07,41.00984003]
[1646256927180,50.51306963,100.13,100.07,100.45984003]
[1646256927404,0.25,100.13,100.07,115.45004003]
[1646256927704,0.25,100.14,100.07,115.45004003]
[1646256927905,5.245,100.15,100.07,215.18004003]
[1646256928413,23.0823,100.16,100.07,250.14592225]
[1646256928605,48.20881956,100.17,100.07,250.14592225]
[1646256928807,29.9224,100.19,100.07,255.14592225]
[1646256929007,29.9224,100.19,100.09,159.18]
[1646256929210,29.9224,100.19,100.11,14.9835]
[1646256929410,29.9224,100.19,100.12,23.539]
[1646256929608,24.9284,100.19,100.12,23.789]
[1646256929808,46.91548083,100.18,100.12,23.789]
[1646256930210,6.0,100.17,100.12,23.789]
[1646256931110,6.25,100.17,100.12,23.789]
[1646256931910,6.0,100.17,100.12,23.789]
[1646256932212,6.25,100.17,100.12,23.789]
[1646256933412,6.25,100.17,100.1,14.38]
[1646256933613,6.25,100.17,100.1,24.057]
[1646256933815,25.64558823,100.17,100.08,23.5357]
[1646256934012,53.88418823,100.17,100.08,46.8428]
[1646256934712,53.88418823,100.17,100.08,47.0928]
[1646256935112,68.87278823,100.17,100.08,47.0928]
[1646256936913,70.69644378,100.17,100.08,47.0928]
[1646256942116,72.50628362,100.17,100.08,47.0928]
[1646256944422,67.51328362,100.17,100.08,47.0928]
[1646256947324,19.9838,100.16,100.08,47.0928]
[1646256947527,20.2338,100.16,100.08,47.0928]
[1646256952535,20.2338,100.16,100.08,46.8428]
[1646256954259,52.87445843,100.14,100.08,46.8428]
[1646256954462,53.12445843,100.14,100.08,46.8428]
[1646256954658,0.25,100.14,100.08,46.8428]
[1646256955057,0.25,100.14,100.08,47.0928]
[1646256955657,0.25,100.15,100.08,61.4728]
[1646256955855,57.83384457,100.16,100.08,64.02184003]
[1646256956357,57.83384457,100.16,100.08,61.4728]
[1646256957158,72.82414457,100.16,100.08,61.4728]
[1646256967074,6.0,100.15,100.08,61.4728]
[1646256967275,23.0206,100.15,100.08,61.4728]
[1646256968277,23.0206,100.15,100.08,64.02184003]
[1646256972681,0.25,100.15,100.09,159.18]
[1646256972884,0.25,100.16,100.1,27.9394]
[1646256973082,28.4567,100.17,100.1,28.1894]
[1646256974485,6.0,100.16,100.1,23.1894]
[1646256974685,6.25,100.16,100.1,23.1894]
[1646256977395,6.25,100.16,100.1,22.9394]
[1646256981916,11.243,100.16,100.1,22.9394]
[1646256983321,4.993,100.15,100.1,22.9394]
[1646256983524,56.11563219,100.14,100.1,22.9394]
[1646256983820,56.36563219,100.14,100.1,22.9394]
[1646256986823,0.25,100.14,100.1,22.9394]
[1646256987026,5.243,100.15,100.1,22.9394]
[1646256999669,6.0,100.14,100.1,22.9394]
[1646256999871,6.25,100.14,100.1,22.9394]
[1646257007476,0.25,100.14,100.1,22.9394]
[1646257007676,15.2414,100.15,100.1,22.9394]
[1646257007977,114.9714,100.15,100.06,21.92304003]
[1646257008181,10.994,100.14,100.07,24.8034]
[1646257008378,14.9956,100.13,100.07,24.8034]
[1646257008678,49.59047655,100.12,100.07,24.8034]
[1646257008879,49.84047655,100.12,100.07,24.8034]
[1646257011379,54.83547655,100.12,100.07,24.8034]
[1646257011580,69.83107655,100.12,100.07,24.8034]
[1646257011780,64.83607655,100.12,100.07,24.8034]
[1646257014685,4.995,100.11,100.07,24.8034]
[1646257014887,5.245,100.11,100.07,24.8034]
[1646257015685,4.995,100.11,100.07,24.8034]
[1646257016086,64.58607655,100.12,100.07,24.8034]
[1646257016286,58.58607655,100.12,100.07,24.8034]
[1646257017087,58.83607655,100.12,100.07,24.8034]
[1646257017488,15.2456,100.12,100.07,24.8034]
[1646257017890,0.25,100.12,100.07,24.8034]
[1646257018090,0.25,100.13,100.07,24.8034]
[1646257018290,6.0,100.13,100.07,24.8034]
[1646257018491,6.25,100.13,100.07,24.8034]
[1646257018694,6.0,100.13,100.07,24.8034]
[1646257020000,20.9944,100.13,100.07,24.8034]
[1646257020196,21.2444,100.13,100.07,24.8034]
[1646257021599,4.995,100.12,100.07,24.8034]
[1646257021893,5.245,100.12,100.07,24.8034]
[1646257024795,0.25,100.12,100.07,24.8034]
[1646257025020,21.2444,100.13,100.07,24.8034]
[1646257025417,23.2942,100.14,100.07,24.8034]
[1646257025618,23.2942,100.14,100.07,25.0534]
[1646257026618,23.5442,100.14,100.07,25.0534]
[1646257026821,23.2942,100.14,100.07,25.0534]
[1646257027021,23.2942,100.14,100.07,40.0435]
[1646257028124,23.5442,100.14,100.07,40.0435]
[1646257029026,28.5382,100.14,100.07,40.0435]
[1646257031127,28.5382,100.14,100.07,54.4235]
[1646257036830,23.5442,100.14,100.07,54.4235]
[1646257043640,23.5442,100.14,100.07,39.4334]
[1646257046741,23.5442,100.14,100.07,56.97274003]
[1646257047341,24.4868,100.16,100.08,4.994]
[1646257047543,24.4868,100.16,100.09,22.7686]
[1646257047744,29.4798,100.16,100.09,23.0186]
[1646257048647,4.993,100.16,100.09,122.7486]
[1646257048847,64.8494,100.19,100.09,154.66464003]
[1646257048848,28.8938,100.18,100.09,154.66464003]
[1646257049147,6.0,100.17,100.1,4.993]
[1646257049345,6.0,100.17,100.1,5.243]
[1646257049546,6.0,100.17,100.11,2.54904003]
[1646257049747,6.0,100.17,100.11,2.79904003]
[1646257050145,6.0,100.17,100.12,2.54904003]
[1646257050345,6.0,100.17,100.12,2.79904003]
[1646257051747,6.25,100.17,100.12,2.79904003]
[1646257055250,6.0,100.17,100.12,2.79904003]
[1646257055450,25.19381279,100.19,100.12,2.79904003]
[1646257055651,20.20081279,100.19,100.12,2.79904003]
[1646257055851,5.21481279,100.19,100.12,176.35904003]
[1646257056051,68.1128,100.21,100.13,2.54904003]
[1646257056256,53.1304,100.21,100.13,40.96224003]
[1646257056455,4.991,100.22,100.14,59.45]
[1646257056656,23.8484,100.24,100.15,22.48962493]
[1646257056853,23.8484,100.24,100.15,39.66866496]
[1646257057053,23.8484,100.24,100.15,139.39866496]
[1646257057459,23.8484,100.24,100.16,2.54904003]
[1646257057656,23.8484,100.24,100.16,17.17904003]
[1646257058259,24.0984,100.24,100.17,24.6277]
[1646257058457,24.0984,100.24,100.17,24.8777]
[1646257059783,24.0984,100.24,100.17,0.25]
[1646257059986,39.0758,100.24,100.16,17.77524003]
[1646257060183,4.99,100.23,100.16,17.77524003]
[1646257060384,5.24,100.23,100.16,17.77524003]
[1646257061488,20.2187,100.23,100.16,2.79904003]
[1646257061985,15.2287,100.23,100.15,5.0]
[1646257062186,54.81485798,100.21,100.14,1.2823779]
[1646257062387,77.80645798,100.21,100.14,1.2823779]
[1646257062786,82.79745798,100.21,100.14,1.2823779]
[1646257062986,14.9834,100.2,100.14,1.2823779]
[1646257063187,15.2334,100.2,100.14,1.2823779]
[1646257063387,13.9510221,100.2,100.14,0.25]
[1646257063586,13.9510221,100.2,100.13,23.2309]
[1646257068291,0.25,100.2,100.13,23.2309]
[1646257068490,82.79745798,100.21,100.13,137.9418]
[1646257068691,82.79745798,100.21,100.14,14.38]
[1646257068894,82.79745798,100.21,100.14,14.63]
[1646257069191,82.54745798,100.21,100.14,14.63]
[1646257069390,59.80585798,100.21,100.14,74.08]
[1646257069791,4.991,100.21,100.14,243.58887753]
[1646257069992,39.0442,100.24,100.14,288.32897753]
[1646257070193,6.0,100.23,100.14,288.32897753]
[1646257070493,6.0,100.23,100.14,293.32897753]
[1646257070690,39.0442,100.24,100.14,293.32897753]
[1646257070891,51.13605086,100.23,100.14,293.32897753]
[1646257071091,51.38605086,100.23,100.14,293.32897753]
[1646257072992,51.38605086,100.23,100.14,308.13057753]
[1646257073796,4.99,100.22,100.14,308.13057753]
[1646257073999,5.24,100.22,100.14,308.13057753]
[1646257074196,5.24,100.22,100.14,148.95057753]
[1646257076299,20.2201,100.22,100.14,148.95057753]
[1646257076900,20.2201,100.22,100.15,2.54904003]
[1646257077099,20.2201,100.22,100.15,2.79904003]
[1646257079903,5.24,100.22,100.15,2.79904003]
[1646257080505,4.99,100.22,100.15,2.79904003]
[1646257081305,4.99,100.22,100.15,17.17904003]
[1646257082207,5.24,100.22,100.15,17.17904003]
[1646257083010,0.25,100.22,100.15,17.17904003]
[1646257083206,71.10475086,100.23,100.15,17.17904003]
[1646257083406,71.10475086,100.23,100.16,23.8343]
[1646257083608,71.10475086,100.23,100.16,24.0843]
[1646257084607,71.35475086,100.23,100.16,24.0843]
[1646257086111,66.36475086,100.23,100.16,24.0843]
[1646257093633,66.36475086,100.23,100.16,23.8343]
[1646257093634,10.99,100.22,100.16,23.8343]
[1646257093834,26.2213,100.22,100.16,23.8343]
[1646257094132,26.2213,100.22,100.14,74.77887753]
[1646257094332,50.9693,100.22,100.14,28.828]
[1646257094534,50.9693,100.22,100.14,23.828]
[1646257094735,54.27787165,100.22,100.14,23.828]
[1646257094935,81.1573285,100.22,100.14,23.828]
[1646257095435,180.8873285,100.22,100.12,4.991]
[1646257095638,99.73,100.2,100.12,4.991]
[1646257095835,25.9797,100.19,100.12,4.991]
[1646257096036,44.4122468,100.18,100.12,4.991]
[1646257096234,44.6622468,100.18,100.12,4.991]
[1646257096637,6.0,100.17,100.12,5.241]
[1646257096838,6.25,100.17,100.12,4.991]
[1646257097037,21.2377,100.17,100.12,4.991]
[1646257098439,26.2297,100.17,100.12,4.991]
[1646257098842,26.2297,100.17,100.09,5.0]
[1646257099040,26.2297,100.17,100.08,21.15777532]
[1646257099041,41.74503018,100.17,100.08,22.8488]
[1646257099340,143.21747722,100.17,100.08,22.8488]
[1646257099542,67.87433783,100.17,100.08,22.8488]
[1646257100342,181.98433783,100.17,100.08,22.8488]
[1646257100544,6.0,100.16,100.08,22.8488]
[1646257100746,14.9923,100.14,100.08,23.0988]
[1646257100942,63.18940186,100.13,100.08,23.0988]
[1646257101149,63.43940186,100.13,100.08,23.0988]
[1646257101744,57.43940186,100.13,100.08,23.0988]
[1646257103448,72.43320186,100.13,100.08,0.25]
[1646257103651,6.0,100.12,100.04,5.0]
[1646257103848,6.0,100.12,100.03,24.0043]
[1646257103849,4.996,100.11,100.03,24.0043]
[1646257104051,55.83183187,100.09,100.03,24.0043]
[1646257104249,56.08183187,100.09,100.03,24.0043]
[1646257104848,61.07883187,100.09,100.03,24.0043]
[1646257105048,5.247,100.09,100.03,24.2543]
[1646257105950,4.997,100.11,100.03,24.2543]
[1646257106153,22.5111,100.12,100.03,142.54889085]
[1646257106351,50.9840448,100.13,100.03,253.85350359]